fUSD/lending_fUSD_20250108
["ID","MTS","AMOUNT","RATE_DAILY","PERIOD"]
[348150909,1736356244005,-500.0,0.00011248,2]
[348150910,1736356244015,-500.0,0.00011248,2]
[348150911,1736356244028,-247.87634461,0.00011248,2]
[348150912,1736356244038,-500.0,0.00011248,2]
[348150913,1736356244047,-500.0,0.00011248,2]
[348150914,1736356244057,-211.46117744,0.00011248,2]
[348150915,1736356244067,-500.0,0.00011248,2]
[348150916,1736356244076,-500.96982309,0.00011248,2]
[348150917,1736356244087,-500.0,0.00011248,2]
[348150918,1736356244096,-500.0,0.00011248,2]
[348150919,1736356244105,-500.65681682,0.00011248,2]
[348150920,1736356244115,-500.0,0.00011248,2]
[348150921,1736356244124,-500.0,0.00011248,2]
[348150922,1736356244133,-500.0,0.00011248,2]
[348150923,1736356244143,-500.0,0.00011248,2]
[348150924,1736356244152,-500.0,0.00011248,2]
[348150925,1736356244161,-500.0,0.00011248,2]
[348150926,1736356244171,-500.0,0.00011248,2]
[348150927,1736356244181,-505.19189071,0.00011248,2]
[348150928,1736356244191,-500.0,0.00011248,2]
[348150929,1736356244201,-500.0,0.00011248,2]
[348150930,1736356244211,-500.0,0.00011248,2]
[348150931,1736356244221,-500.0,0.00011248,2]
[348150932,1736356244231,-500.0,0.00011248,2]
[348150933,1736356244241,-500.0,0.00011248,2]
[348150934,1736356244250,-500.0,0.00011248,2]
[348150935,1736356244259,-500.0,0.00011248,2]
[348150936,1736356244268,-500.0,0.00011248,2]
[348150937,1736356244282,-500.0,0.00011248,2]
[348150938,1736356244292,-500.0,0.00011248,2]
[348150939,1736356244302,-500.0,0.00011248,2]
[348150940,1736356244312,-500.0,0.00011248,2]
[348150941,1736356244322,-500.0,0.00011248,2]
[348150942,1736356244332,-500.0,0.00011248,2]
[348150943,1736356244342,-500.0,0.00011248,2]
[348150944,1736356244351,-500.0,0.00011248,2]
[348150945,1736356244369,-501.29491568,0.00011248,2]
[348150946,1736356244381,-500.0,0.00011248,2]
[348150947,1736356244391,-500.0,0.00011248,2]
[348150948,1736356244401,-500.0,0.00011248,2]
[348150949,1736356244411,-500.0,0.00011248,2]
[348150950,1736356244420,-504.70163025,0.00011249,2]
[348150951,1736356244429,-504.48375104,0.00011249,2]
[348150952,1736356244439,-500.0,0.00011249,2]
[348150953,1736356244449,-500.0,0.00011249,2]
[348150954,1736356244458,-500.0,0.00011249,2]
[348150955,1736356244468,-500.0,0.00011249,2]
[348150956,1736356244478,-500.0,0.00011249,2]
[348150957,1736356244488,-500.0,0.00011249,2]
[348150958,1736356244498,-500.0,0.00011249,2]
[348150959,1736356244508,-504.69567588,0.00011249,2]
[348150960,1736356244518,-498.89783888,0.00011249,2]
[348150961,1736356244529,-500.0,0.00011249,2]
[348150962,1736356244539,-500.0,0.00011249,2]
[348150963,1736356244549,-500.0,0.00011249,2]
[348150964,1736356244559,-274.95124582,0.00011249,2]
[348150965,1736356244568,-500.0,0.00011249,2]
[348150966,1736356244578,-500.0,0.00011249,2]
[348150967,1736356244588,-41.12226926,0.00011249,2]
[348150968,1736356244635,-458.87773074,0.00011249,2]
[348150969,1736356244644,-500.0,0.00011249,2]
[348150970,1736356244654,-500.0,0.00011249,2]
[348150971,1736356244663,-500.0,0.00011249,2]
[348150972,1736356244673,-500.0,0.00011249,2]
[348150973,1736356244683,-506.35805593,0.00011249,2]
[348150974,1736356244692,-503.65740767,0.00011249,2]
[348150975,1736356244701,-500.0,0.00011249,2]
[348150976,1736356244711,-512.42,0.00011249,2]
[348150977,1736356244721,-281.62316671,0.00011249,2]
[348150978,1736356245002,-291.48,9.763e-05,2]
[348150979,1736356245014,-250.8350002,9.763e-05,2]
[348150980,1736356245028,-6.2349998,9.763e-05,2]
[348150981,1736356245038,-320.9517745,0.00011248,2]
[348150982,1736356245050,-179.0482255,0.00011248,2]
[348150983,1736356245061,-163.24465607,0.00011248,2]
[348150984,1736356245080,-336.75534393,0.00011248,2]
[348150985,1736356245089,-223.86075606,0.00011249,2]
[348150986,1736356245099,-505.43930419,0.00011249,2]
[348150987,1736356245108,-500.0,0.00011249,2]
[348150988,1736356245118,-500.0,0.00011249,2]
[348150989,1736356245127,-500.0,0.00011249,2]
[348150990,1736356245136,-500.0,0.00011249,2]
[348150991,1736356245146,-500.0,0.00011249,2]
[348150992,1736356245155,-500.0,0.00011249,2]
[348150993,1736356245165,-500.0,0.00011249,2]
[348150994,1736356245175,-500.0,0.00011249,2]
[348150995,1736356245185,-500.0,0.00011249,2]
[348150996,1736356245195,-500.0,0.00011249,2]
[348150997,1736356245205,-500.0,0.00011249,2]
[348150998,1736356245216,-505.34486854,0.00011249,2]
[348150999,1736356245226,-500.0,0.00011249,2]
[348151000,1736356245236,-500.0,0.00011249,2]
[348151001,1736356245247,-500.0,0.00011249,2]
[348151002,1736356245256,-500.0,0.00011249,2]
[348151003,1736356245266,-500.0,0.00011249,2]
[348151004,1736356245277,-591.46317281,0.00011249,2]
[348151005,1736356245286,-500.0,0.00011249,2]
[348151006,1736356245295,-500.0,0.00011249,2]
[348151007,1736356245304,-500.0,0.00011249,2]
[348151008,1736356245313,-157.118635,0.00011249,2]
[348151009,1736356245322,-503.51736161,0.00011249,2]
[348151010,1736356245331,-505.41823018,0.00011249,2]
[348151011,1736356245341,-503.19750863,0.00011249,2]
[348151012,1736356245351,-560.08349159,0.00011249,2]
[348151013,1736356245360,-475.32,0.00011249,2]
[348151015,1736356245370,-500.0,0.00011249,2]
[348151017,1736356245379,-500.0,0.00011249,2]
[348151019,1736356245388,-500.0,0.00011249,2]
[348151021,1736356245398,-500.0,0.00011249,2]
[348151023,1736356245407,-500.0,0.00011249,2]
[348151025,1736356245416,-500.0,0.00011249,2]
[348151027,1736356245426,-272.28,0.00011249,2]
[348151031,1736356245435,-212.75,0.00011249,2]
[348151034,1736356245445,-500.0,0.00011249,2]
[348151037,1736356245454,-500.0,0.00011249,2]
[348151040,1736356245464,-500.0,0.00011249,2]
[348151043,1736356245473,-167.79160638,0.00011249,2]
[348151046,1736356245483,-500.0,0.00011249,2]
[348151049,1736356245492,-500.0,0.00011249,2]
[348151052,1736356245501,-500.0,0.00011249,2]
[348151056,1736356245510,-733.11,0.00011249,2]
[348151059,1736356245520,-500.0,0.00011249,2]
[348151063,1736356245531,-500.0,0.00011249,2]
[348151066,1736356245540,-500.0,0.00011249,2]
[348151067,1736356245549,-1056.51,0.00011249,2]
[348151069,1736356245559,-500.0,0.00011249,2]
[348151071,1736356245568,-500.0,0.00011249,2]
[348151073,1736356245577,-500.0,0.00011249,2]
[348151075,1736356245587,-500.0,0.00011249,2]
[348151078,1736356245596,-983.84,0.00011249,2]
[348151080,1736356245606,-500.0,0.00011249,2]
[348151081,1736356245614,-500.0,0.00011249,2]
[348151082,1736356245624,-500.0,0.00011249,2]
[348151083,1736356245633,-723.61,0.00011249,2]
[348151085,1736356245643,-1406.34,0.00011249,2]
[348151087,1736356245652,-569.38,0.00011249,2]
[348151089,1736356245661,-1506.86972108,0.00011249,2]
[348151091,1736356245674,-751.30027892,0.00011249,2]
[348151093,1736356245683,-558.37828398,0.00011249,2]
[348151095,1736356245695,-257.90435706,0.00011249,2]
[348151097,1736356245707,-620.88227204,0.00011249,2]
[348151099,1736356245719,-767.62508692,0.00011249,2]
[348151101,1736356245729,-500.0,0.00011249,2]
[348151103,1736356245739,-937.43,0.00011249,2]
[348151105,1736356245749,-1310.65,0.00011249,2]
[348151107,1736356245758,-500.0,0.0001125,2]
[348151109,1736356245767,-500.0,0.0001125,2]
[348151111,1736356245777,-694.26,0.0001125,2]
[348151113,1736356245787,-544.82,0.0001125,2]
[348151115,1736356245797,-5200.0,0.000113,4]
[348151117,1736356245807,-200.28146253,0.00011317,2]
[348151118,1736356245818,-150.0,0.00011319,2]
[348151121,1736356245829,-500.0,0.00011343,2]
[348151122,1736356245839,-159.80688201,0.00011343,2]
[348151124,1736356245848,-152.60690445,0.00011343,2]
[348151126,1736356245857,-500.0,0.00011368,2]
[348151128,1736356245867,-956.12,0.00011368,2]
[348151130,1736356245876,-2115.02,0.00011368,2]
[348151132,1736356245889,-500.0,0.00011368,2]
[348151134,1736356245899,-908.98,0.00011368,2]
[348151136,1736356245908,-1118.12,0.00011368,2]
[348151138,1736356245917,-611.51446952,0.00011368,2]
[348151140,1736356245929,-2210.18,0.00011368,2]
[348151142,1736356245938,-531.58,0.00011368,2]
[348151144,1736356245948,-500.0,0.00011368,2]
[348151146,1736356245959,-1085.66,0.00011368,2]
[348151148,1736356245968,-765.15,0.00011368,2]
[348151150,1736356245978,-500.0,0.00011368,2]
[348151152,1736356245987,-500.0,0.00011369,2]
[348151154,1736356245997,-1592.55,0.00011369,2]
[348151156,1736356246006,-796.27,0.00011369,2]
[348151158,1736356246016,-555.33,0.00011369,2]
[348151160,1736356246027,-405.0,0.00011376,2]
[348151161,1736356246036,-500.59029344,0.00011395,2]
[348151162,1736356246046,-1000.0,0.00011399,2]
[348151163,1736356246057,-1000.0,0.000114,4]
[348151165,1736356246067,-200.28146253,0.000114,2]
[348151167,1736356246076,-927.09,0.00011407,2]
[348151168,1736356246086,-933.18,0.00011407,2]
[348151169,1736356246096,-801.47,0.00011407,2]
[348151170,1736356246105,-500.0,0.00011407,2]
[348151171,1736356246114,-1464.27,0.00011407,2]
[348151172,1736356246124,-500.0,0.00011407,2]
[348151173,1736356246134,-803.55,0.00011407,2]
[348151174,1736356246143,-153.70493156,0.00011423,2]
[348151175,1736356246153,-20736.3397,0.00011423,2]
[348151176,1736356246162,-36777.27480714,0.00011423,2]
[348151177,1736356246174,-316.58389286,0.00011423,2]
[348151178,1736356246184,-1500.0,0.00011424,2]
[348151179,1736356246194,-500.0,0.00011447,2]
[348151180,1736356246203,-500.0,0.00011447,2]
[348151181,1736356246214,-500.0,0.00011447,2]
[348151182,1736356246224,-503.71,0.00011447,2]
[348151183,1736356246234,-500.0,0.00011447,2]
[348151184,1736356246244,-711.96,0.00011447,2]
[348151185,1736356246253,-1105.89,0.00011447,2]
[348151186,1736356246263,-716.7,0.00011447,2]
[348151187,1736356246273,-856.652496,0.00011447,2]
[348151188,1736356246290,-500.0,0.00011447,2]
[348151189,1736356246300,-922.210629,0.00011447,2]
[348151190,1736356246311,-2474.78,0.00011447,2]
[348151191,1736356246321,-500.0,0.00011447,2]
[348151192,1736356246330,-150.0,0.00011456,2]
[348151193,1736356246340,-200.28146253,0.00011483,2]
[348151194,1736356246350,-1000.0,0.000115,4]
[348151195,1736356246360,-150.0,0.00011504,2]
[348151196,1736356246369,-1419.3573681,0.00011507,2]
[348151197,1736356246381,-900.91879339,0.00011507,2]
[348151198,1736356246393,-430.72383851,0.00011507,2]
[348151199,1736356246403,-500.0,0.00011522,2]
[348151200,1736356246413,-500.0,0.00011522,2]
[348151201,1736356246422,-500.0,0.00011522,2]
[348151202,1736356246432,-232.6427756,0.00011522,2]
[348151203,1736356246455,-267.3572244,0.00011522,2]
[348151204,1736356246464,-500.0,0.00011522,2]
[348151205,1736356246474,-500.0,0.00011522,2]
[348151206,1736356246483,-500.0,0.00011522,2]
[348151207,1736356246493,-500.0,0.00011522,2]
[348151208,1736356246502,-500.0,0.00011522,2]
[348151209,1736356246512,-500.0,0.00011522,2]
[348151210,1736356246522,-500.0,0.00011522,2]
[348151211,1736356246535,-500.0,0.00011522,2]
[348151212,1736356246545,-548.48,0.00011522,2]
[348151213,1736356246555,-500.0,0.00011522,2]
[348151214,1736356246564,-500.0,0.00011522,2]
[348151215,1736356246574,-500.0,0.00011522,2]
[348151216,1736356246584,-481.18359853,0.00011522,2]
[348151217,1736356246594,-500.0,0.00011522,2]
[348151218,1736356246604,-500.0,0.00011522,2]
[348151219,1736356246613,-500.0,0.00011522,2]
[348151220,1736356246623,-375.28177583,0.00011522,2]
[348151238,1736356246906,-2903.3713,9.43e-05,2]
[348151240,1736356246916,-500.0,9.999e-05,2]
[348151242,1736356246927,-500.0,0.00010273,2]
[348151243,1736356246937,-500.0,0.00011248,2]
[348151245,1736356246947,-124.71822417,0.00011522,2]
[348151246,1736356246958,-500.0,0.00011522,2]
[348151247,1736356246969,-500.0,0.00011522,2]
[348151248,1736356246980,-500.0,0.00011522,2]
[348151249,1736356246991,-500.0,0.00011522,2]
[348151250,1736356247001,-500.0,0.00011522,2]
[348151251,1736356247011,-500.0,0.00011522,2]
[348151253,1736356247021,-500.0,0.00011522,2]
[348151255,1736356247036,-500.0,0.00011522,2]
[348151257,1736356247046,-500.0,0.00011522,2]
[348151258,1736356247056,-500.0,0.00011522,2]
[348151260,1736356247067,-500.0,0.00011522,2]
[348151262,1736356247076,-500.0,0.00011522,2]
[348151264,1736356247086,-500.0,0.00011522,2]
[348151266,1736356247096,-500.0,0.00011522,2]
[348151268,1736356247106,-212.43646993,0.00011522,2]
[348151270,1736356247116,-500.0,0.00011522,2]
[348151272,1736356247127,-500.0,0.00011522,2]
[348151273,1736356247136,-500.0,0.00011522,2]
[348151275,1736356247146,-500.0,0.00011522,2]
[348151277,1736356247156,-500.0,0.00011522,2]
[348151279,1736356247166,-500.0,0.00011522,2]
[348151281,1736356247175,-500.0,0.00011522,2]
[348151283,1736356247184,-500.0,0.00011522,2]
[348151284,1736356247193,-500.0,0.00011522,2]
[348151285,1736356247202,-500.0,0.00011522,2]
[348151286,1736356247214,-500.0,0.00011522,2]
[348151288,1736356247226,-500.0,0.00011522,2]
[348151290,1736356247235,-500.0,0.00011522,2]
[348151292,1736356247244,-500.0,0.00011522,2]
[348151294,1736356247254,-500.0,0.00011522,2]
[348151296,1736356247265,-500.0,0.00011522,2]
[348151298,1736356247274,-309.4740059,0.00011522,2]
[348151300,1736356247292,-190.5259941,0.00011522,2]
[348151302,1736356247302,-500.0,0.00011522,2]
[348151304,1736356247312,-255.4190059,0.00011522,2]
[348151306,1736356247324,-244.5809941,0.00011522,2]
[348151307,1736356247334,-560.76,0.00011522,2]
[348151308,1736356247344,-500.0,0.00011522,2]
[348151309,1736356247354,-500.0,0.00011522,2]
[348151310,1736356247364,-500.0,0.00011522,2]
[348151311,1736356247373,-500.0,0.00011522,2]
[348151312,1736356247383,-587.99607474,0.00011522,2]
[348151313,1736356247393,-500.0,0.00011522,2]
[348151314,1736356247403,-351.26411594,0.00011522,2]
[348151315,1736356247413,-500.0,0.00011522,2]
[348151316,1736356247422,-500.0,0.00011522,2]
[348151317,1736356247432,-500.0,0.00011522,2]
[348151318,1736356247442,-500.0,0.00011522,2]
[348151319,1736356247451,-500.0,0.00011522,2]
[348151320,1736356247461,-500.0,0.00011522,2]
[348151321,1736356247471,-500.0,0.00011522,2]
[348151322,1736356247481,-500.0,0.00011522,2]
[348151323,1736356247491,-500.0,0.00011522,2]
[348151324,1736356247502,-500.0,0.00011522,2]
[348151325,1736356247513,-176.81081523,0.00011522,2]
[348151326,1736356247525,-323.18918477,0.00011522,2]
[348151327,1736356247539,-500.0,0.00011522,2]
[348151328,1736356247549,-500.0,0.00011522,2]
[348151329,1736356247558,-500.0,0.00011522,2]
[348151330,1736356247568,-500.0,0.00011522,2]
[348151331,1736356247577,-500.0,0.00011522,2]
[348151332,1736356247587,-500.0,0.00011522,2]
[348151333,1736356247598,-500.0,0.00011522,2]
[348151334,1736356247607,-500.0,0.00011522,2]
[348151335,1736356247618,-537.76163464,0.00011522,2]
[348151336,1736356247627,-500.0,0.00011522,2]
[348151337,1736356247637,-500.0,0.00011522,2]
[348151338,1736356247647,-500.0,0.00011522,2]
[348151339,1736356247656,-500.0,0.00011522,2]
[348151340,1736356247667,-500.0,0.00011522,2]
[348151341,1736356247676,-500.0,0.00011522,2]
[348151342,1736356247686,-500.0,0.00011522,2]
[348151343,1736356247696,-500.0,0.00011522,2]
[348151344,1736356247705,-500.0,0.00011522,2]
[348151345,1736356247714,-500.0,0.00011522,2]
[348151346,1736356247724,-500.0,0.00011522,2]
[348151347,1736356247734,-504.06543452,0.00011522,2]
[348151348,1736356247744,-500.0,0.00011522,2]
[348151349,1736356247754,-526.08623902,0.00011522,2]
[348151350,1736356247763,-346.36090801,0.00011522,2]
[348151351,1736356247773,-500.0,0.00011522,2]
[348151352,1736356247788,-500.0,0.00011522,2]
[348151353,1736356247797,-500.0,0.00011522,2]
[348151354,1736356247808,-502.80646838,0.00011522,2]
[348151355,1736356247819,-500.0,0.00011522,2]
[348151356,1736356247829,-500.0,0.00011522,2]
[348151357,1736356247839,-500.0,0.00011522,2]
[348151358,1736356247849,-500.0,0.00011522,2]
[348151359,1736356247858,-500.0,0.00011522,2]
[348151360,1736356247868,-475.24965592,0.00011522,2]
[348151361,1736356247880,-500.0,0.00011522,2]
[348151362,1736356247891,-500.0,0.00011522,2]
[348151363,1736356247900,-500.0,0.00011522,2]
[348151364,1736356247910,-500.0,0.00011522,2]
[348151365,1736356247921,-500.0,0.00011522,2]
[348151366,1736356247931,-500.0,0.00011522,2]
[348151367,1736356247941,-500.0,0.00011522,2]
[348151368,1736356247951,-500.0,0.00011522,2]
[348151369,1736356247961,-500.0,0.00011522,2]
[348151370,1736356247972,-500.0,0.00011522,2]
[348151371,1736356247982,-500.0,0.00011522,2]
[348151372,1736356247991,-747.68,0.00011522,2]
[348151373,1736356248001,-500.0,0.00011522,2]
[348151374,1736356248012,-500.0,0.00011522,2]
[348151375,1736356248023,-500.0,0.00011522,2]
[348151376,1736356248037,-500.0,0.00011522,2]
[348151377,1736356248047,-500.0,0.00011522,2]
[348151378,1736356248057,-500.0,0.00011522,2]
[348151379,1736356248070,-500.0,0.00011522,2]
[348151380,1736356248081,-500.0,0.00011522,2]
[348151381,1736356248092,-500.0,0.00011522,2]
[348151382,1736356248103,-201.12237948,0.00011522,2]
[348151383,1736356248113,-500.0,0.00011522,2]
[348151384,1736356248123,-500.0,0.00011522,2]
[348151385,1736356248133,-175.45,0.00011522,2]
[348151386,1736356248143,-500.0,0.00011522,2]
[348151387,1736356248154,-1680.09,0.00011522,2]
[348151388,1736356248165,-500.0,0.00011522,2]
[348151389,1736356248368,-500.0,0.00011522,2]
[348151390,1736356248379,-348.23773976,0.00011522,2]
[348151391,1736356248390,-500.0,0.00011522,2]
[348151392,1736356248400,-336.78,0.00011522,2]
[348151393,1736356248411,-500.0,0.00011522,2]
[348151394,1736356248421,-500.0,0.00011522,2]
[348151395,1736356248431,-500.0,0.00011522,2]
[348151396,1736356248442,-500.0,0.00011522,2]
[348151397,1736356248452,-500.0,0.00011522,2]
[348151398,1736356248462,-500.0,0.00011522,2]
[348151399,1736356248471,-500.0,0.00011522,2]
[348151400,1736356248481,-500.0,0.00011522,2]
[348151401,1736356248491,-500.0,0.00011522,2]
[348151402,1736356248501,-500.0,0.00011522,2]
[348151403,1736356248511,-500.0,0.00011522,2]
[348151404,1736356248521,-500.0,0.00011522,2]
[348151405,1736356248533,-500.0,0.00011522,2]
[348151406,1736356248544,-500.0,0.00011522,2]
[348151407,1736356248555,-500.0,0.00011522,2]
[348151408,1736356248564,-500.0,0.00011522,2]
[348151409,1736356248575,-233.78602415,0.00011522,2]
[348151410,1736356248585,-500.0,0.00011522,2]
[348151411,1736356248595,-500.0,0.00011522,2]
[348151412,1736356248605,-500.0,0.00011522,2]
[348151413,1736356248614,-500.0,0.00011522,2]
[348151414,1736356248624,-500.0,0.00011522,2]
[348151415,1736356248633,-500.0,0.00011522,2]
[348151416,1736356248643,-500.0,0.00011522,2]
[348151417,1736356248653,-500.0,0.00011522,2]
[348151418,1736356248664,-500.0,0.00011522,2]
[348151419,1736356248673,-500.0,0.00011522,2]
[348151420,1736356248683,-500.0,0.00011522,2]
[348151421,1736356248693,-500.0,0.00011522,2]
[348151422,1736356248703,-500.0,0.00011522,2]
[348151423,1736356248712,-500.0,0.00011522,2]
[348151424,1736356248722,-500.0,0.00011522,2]
[348151425,1736356248731,-500.0,0.00011522,2]
[348151426,1736356248741,-500.0,0.00011522,2]
[348151427,1736356248751,-500.0,0.00011522,2]
[348151428,1736356248760,-724.99,0.00011522,2]
[348151429,1736356248771,-500.0,0.00011522,2]
[348151430,1736356248784,-513.56589361,0.00011522,2]
[348151431,1736356248794,-506.92734699,0.00011522,2]
[348151432,1736356248804,-508.20928554,0.00011522,2]
[348151433,1736356248814,-500.0,0.00011522,2]
[348151434,1736356248824,-500.0,0.00011522,2]
[348151435,1736356248835,-500.0,0.00011522,2]
[348151436,1736356248845,-500.0,0.00011522,2]
[348151437,1736356248855,-500.0,0.00011522,2]
[348151438,1736356248866,-500.0,0.00011522,2]
[348151439,1736356248875,-500.0,0.00011522,2]
[348151440,1736356248885,-500.0,0.00011522,2]
[348151441,1736356248900,-500.0,0.00011522,2]
[348151442,1736356248910,-500.0,0.00011522,2]
[348151443,1736356248920,-500.0,0.00011522,2]
[348151444,1736356248929,-500.0,0.00011522,2]
[348151445,1736356248940,-500.0,0.00011522,2]
[348151446,1736356248950,-500.0,0.00011522,2]
[348151447,1736356248961,-500.0,0.00011522,2]
[348151448,1736356248971,-500.0,0.00011522,2]
[348151449,1736356248982,-500.0,0.00011522,2]
[348151450,1736356248993,-500.0,0.00011522,2]
[348151451,1736356249005,-500.0,0.00011522,2]
[348151452,1736356249016,-500.0,0.00011522,2]
[348151453,1736356249031,-500.0,0.00011522,2]
[348151454,1736356249042,-500.0,0.00011522,2]
[348151455,1736356249053,-500.0,0.00011522,2]
[348151456,1736356249063,-500.0,0.00011522,2]
[348151457,1736356249074,-502.10475351,0.00011522,2]
[348151458,1736356249084,-267.60524433,0.00011522,2]
[348151459,1736356249094,-500.0,0.00011522,2]
[348151460,1736356249104,-500.0,0.00011522,2]
[348151461,1736356249114,-500.0,0.00011522,2]
[348151462,1736356249125,-500.0,0.00011522,2]
[348151463,1736356249135,-439.77917585,0.00011522,2]
[348151464,1736356249145,-500.0,0.00011522,2]
[348151465,1736356249155,-500.0,0.00011522,2]
[348151466,1736356249165,-500.0,0.00011522,2]
[348151467,1736356249174,-340.40263152,0.00011522,2]
[348151468,1736356249190,-159.59736848,0.00011522,2]
[348151469,1736356249200,-500.0,0.00011522,2]
[348151470,1736356249210,-500.0,0.00011523,2]
[348151471,1736356249221,-500.0,0.00011523,2]
[348151472,1736356249231,-500.0,0.00011523,2]
[348151473,1736356249242,-500.0,0.00011523,2]
[348151474,1736356249252,-500.0,0.00011523,2]
[348151475,1736356249262,-500.0,0.00011523,2]
[348151476,1736356249271,-500.0,0.00011523,2]
[348151477,1736356249284,-500.0,0.00011523,2]
[348151478,1736356249293,-733.11,0.00011523,2]
[348151479,1736356249302,-1056.51,0.00011523,2]
[348151480,1736356249312,-500.0,0.00011523,2]
[348151481,1736356249321,-500.0,0.00011523,2]
[348151482,1736356249330,-500.0,0.00011523,2]
[348151483,1736356249340,-500.0,0.00011523,2]
[348151484,1736356249349,-983.84,0.00011523,2]
[348151485,1736356249359,-500.0,0.00011523,2]
[348151486,1736356249368,-500.0,0.00011523,2]
[348151487,1736356249380,-500.0,0.00011523,2]
[348151488,1736356249390,-723.61,0.00011523,2]
[348151489,1736356249400,-1406.34,0.00011523,2]
[348151490,1736356249410,-569.38,0.00011523,2]
[348151491,1736356249420,-2258.17,0.00011523,2]
[348151492,1736356249430,-2204.79,0.00011523,2]
[348151493,1736356249440,-500.0,0.00011523,2]
[348151494,1736356249451,-937.43,0.00011523,2]
[348151495,1736356249461,-1310.65,0.00011523,2]
[348151496,1736356249471,-500.0,0.00011524,2]
[348151497,1736356249481,-694.26,0.00011524,2]
[348151498,1736356249491,-544.82,0.00011524,2]
[348151499,1736356249501,-200.28146253,0.00011567,2]
[348151500,1736356249510,-150.0,0.00011592,2]
[348151501,1736356249520,-1000.0,0.000116,4]
[348151502,1736356249530,-500.0,0.00011616,2]
[348151503,1736356249540,-500.0,0.00011627,2]
[348151504,1736356249550,-500.0,0.00011641,2]
[348151505,1736356249559,-500.0,0.00011641,2]
[348151506,1736356249569,-500.0,0.00011641,2]
[348151507,1736356249579,-500.0,0.00011641,2]
[348151508,1736356249589,-500.0,0.00011641,2]
[348151509,1736356249598,-574.29,0.00011641,2]
[348151510,1736356249608,-500.0,0.00011641,2]
[348151511,1736356249617,-1002.36,0.00011641,2]
[348151512,1736356249627,-586.54,0.00011641,2]
[348151513,1736356249636,-873.99,0.00011641,2]
[348151514,1736356249647,-500.0,0.00011641,2]
[348151515,1736356249656,-500.0,0.00011641,2]
[348151516,1736356249666,-500.0,0.00011641,2]
[348151517,1736356249675,-500.0,0.00011641,2]
[348151518,1736356249685,-1069.75,0.00011641,2]
[348151519,1736356249695,-551.68,0.00011641,2]
[348151520,1736356249705,-500.0,0.00011641,2]
[348151521,1736356249715,-500.0,0.00011641,2]
[348151522,1736356249725,-500.0,0.00011641,2]
[348151523,1736356249736,-500.0,0.00011642,2]
[348151524,1736356249746,-956.12,0.00011642,2]
[348151525,1736356249755,-2115.02,0.00011642,2]
[348151526,1736356249765,-500.0,0.00011642,2]
[348151527,1736356249775,-908.98,0.00011642,2]
[348151528,1736356249787,-1118.12,0.00011642,2]
[348151529,1736356249797,-2210.18,0.00011642,2]
[348151530,1736356249806,-531.58,0.00011642,2]
[348151531,1736356249816,-500.0,0.00011642,2]
[348151532,1736356249826,-1085.66,0.00011642,2]
[348151533,1736356249835,-765.15,0.00011642,2]
[348151534,1736356249846,-500.0,0.00011642,2]